{"text_format":"1","workbook":"xlsx","n_sheets":12,"sheets":["実績報告書","事業収支決算書","Ⅰ ","Ⅰ-２ ","Ⅰ-３ ","Ⅰ-４ ","Ⅰ-５ ","Ⅱ","Ⅲ","Ⅳ","Ⅴ","リスト"],"not_rendered":{"charts":0,"images":0,"macros":1,"external_links":0,"defined_names":11,"comments":0,"pivot_tables":0},"unopened":[],"bounds":{"document_bytes":16777216,"sheet_cells":100000,"rows_first":2000,"rows_last":500,"rows_between":2000,"halvings":0,"cell_chars":16384,"cell_head_chars":4096},"cells_cut":0,"cells_raw":0,"read":"whole","date_system":"1900"}

{"sheet":"実績報告書","index":0,"n_rows":80,"n_cols":65,"rows_kept":80,"cut":false,"hidden":false,"merged":[[61,44,62,46],[61,47,62,50],[61,51,62,53],[61,20,62,23],[61,27,62,29],[61,30,62,33],[61,34,62,36],[61,37,62,39],[61,7,62,9],[61,10,62,12],[61,13,62,16],[61,17,62,19],[61,40,62,43],[79,1,80,45],[49,64,52,64],[52,2,53,60],[69,1,70,45],[71,1,72,45],[73,1,74,45],[75,1,76,45],[66,1,67,45],[61,24,62,26],[49,1,50,15],[49,21,50,22],[49,23,50,40],[49,41,50,42],[77,1,78,45],[57,1,58,23],[61,3,62,6],[2,64,4,64],[5,64,7,64],[2,60,3,62],[46,1,47,15],[46,21,47,22],[46,23,47,40],[46,41,47,42],[45,64,48,64],[9,23,10,28],[11,23,12,35],[38,4,42,60],[9,64,12,64],[13,64,16,64],[35,1,36,16],[9,36,12,59],[2,49,3,52],[2,53,3,55],[2,56,3,59],[2,39,3,42],[2,43,3,45],[2,46,3,48],[1,2,2,22],[5,3,6,21],[28,14,29,15],[28,16,29,18],[28,19,29,21],[28,22,29,23],[14,23,15,28],[28,24,29,29],[28,30,29,34],[28,35,29,62],[49,43,50,44],[16,23,17,35],[22,10,24,53],[30,3,31,62],[14,60,17,63],[14,36,17,59],[32,3,33,62],[28,9,29,10],[28,4,29,6],[28,7,29,8],[28,11,29,13]]}
[]
[null,null,"（第８号様式）（第１４条関係）"]
[null,null,null,null,null,null,null,null,null,null,null,null,null,null,null,null,null,null,null,null,null,null,null,null,null,null,null,null,null,null,null,null,null,null,null,null,null,null,null,"令和",null,null,null,null,null,null,"年",null,null,null,null,null,null,"月",null,null,null,null,null,null,"日"]
[]
[]
[null,null,null,"東　京　都　知　事　　殿",null,null,null,null,null,null,null,null,null,null,null,null,null,null,null,null,null,null,null,null,null,null,null,null,null,null,null,null,null,null,null,null,null,null,null,null,null,null,null,null,null,null,null,null,null,null,null,null,null,null,null,null,null,null,null,null,null,null,null,null,"■ 提出前に以下の欄の表示が全て「OK」であることを確認してください。"]
[]
[]
[]
[null,null,null,null,null,null,null,null,null,null,null,null,null,null,null,null,null,null,null,null,null,null,null,"住　　所",null,null,null,null,null,null,null,null,null,null,null,null,null,null,null,null,null,null,null,null,null,null,null,null,null,null,null,null,null,null,null,null,null,null,null,null,null,null,null,null,{"$f":"IF(OR(AK10=\"\",AK15=\"\",H29=\"\",L29=\"\",Q29=\"\",W29=\"\",AE29=\"\",E39=\"\",X50=\"\",H62=\"\",N62=\"\",U62=\"\",AI62=\"\",AO62=\"\",AV62=\"\"),\"入力漏れがあります\",\"OK\")","v":"入力漏れがあります"}]
[]
[null,null,null,null,null,null,null,null,null,null,null,null,null,null,null,null,null,null,null,null,null,null,null,"（法人その他の団体にあっては\n　主たる事務所の所在地）"]
[]
[]
[null,null,null,null,null,null,null,null,null,null,null,null,null,null,null,null,null,null,null,null,null,null,null,"氏　　名",null,null,null,null,null,null,null,null,null,null,null,null,null,null,null,null,null,null,null,null,null,null,null,null,null,null,null,null,null,null,null,null,null,null,null,null,"印"]
[]
[null,null,null,null,null,null,null,null,null,null,null,null,null,null,null,null,null,null,null,null,null,null,null,"（法人その他の団体にあっては\n　その名称、代表者の氏名及び代表者印）"]
[]
[]
[]
[]
[]
[null,null,null,null,null,null,null,null,null,null,"中央卸売市場経営強靭化推進事業補助金実績報告書"]
[]
[]
[]
[]
[]
[null,null,null,null,"令和",null,null,null,null,"年",null,null,null,null,"月",null,null,null,null,"日付",null,null,null,null,"中事業第",null,null,null,null,null,null,null,null,null,null,"号にて補助金の交付の決定を受けた補助事業"]
[]
[null,null,null,"について、中央卸売市場経営強靭化推進事業補助金交付要綱（令和４年３月３１日付３中事業第"]
[]
[null,null,null,"７１０号）第１４条の規定により、次のとおり実績を報告します。"]
[]
[]
[null,"１　交付事業の名称"]
[]
[]
[]
[]
[]
[]
[]
[]
[]
[null,null,null,null,null,null,null,null,null,null,null,null,null,null,null,null,null,null,null,null,null,null,null,null,null,null,null,null,null,null,null,null,null,null,null,null,null,null,null,null,null,null,null,null,null,null,null,null,null,null,null,null,null,null,null,null,null,null,null,null,null,null,null,null,"←補助金交付予定額は自動入力されます"]
[null,"２　補助金交付予定額",null,null,null,null,null,null,null,null,null,null,null,null,null,null,null,null,null,null,null,"金",null,{"$f":"事業収支決算書!AT64","v":0},null,null,null,null,null,null,null,null,null,null,null,null,null,null,null,null,null,"円"]
[]
[]
[null,"　（交付決定補助金額",null,null,null,null,null,null,null,null,null,null,null,null,null,null,null,null,null,null,null,"金",null,null,null,null,null,null,null,null,null,null,null,null,null,null,null,null,null,null,null,"円",null,"）",null,null,null,null,null,null,null,null,null,null,null,null,null,null,null,null,null,null,null,null,"←交付決定補助金額は手入力してください"]
[]
[]
[null,null," （２か年度にわたり交付決定を受けている場合、実績報告の対象年度における交付予定額等を記載すること）"]
[]
[]
[]
[]
[null,"３　交付事業の開始及び完了日"]
[]
[]
[]
[null,null,null,"令和",null,null,null,null,null,null,"年",null,null,null,null,null,null,"月",null,null,null,null,null,null,"日",null,null,"～",null,null,"令和",null,null,null,null,null,null,"年",null,null,null,null,null,null,"月",null,null,null,null,null,null,"日"]
[]
[]
[]
[]
[null,"４　添付書類"]
[]
[]
[null,"（１）事業成果報告書（別紙８－１）"]
[]
[null,"（２）事業収支決算書（別紙８－２）"]
[]
[null,"（３）契約等を確認できる契約書の写し等"]
[]
[null,"（４）事業の完了を確認できる納品書の写し等"]
[]
[null,"（５）経費の支払完了を確認できる領収書の写し等"]
[]
[null,"（６）その他交付決定通知書の付記条件により必要とされる書類"]

{"sheet":"事業収支決算書","index":1,"n_rows":66,"n_cols":65,"rows_kept":66,"cut":false,"hidden":false,"merged":[[64,64,65,64],[36,40,36,48],[36,49,36,62],[35,1,35,17],[35,18,35,25],[35,26,35,32],[35,33,35,39],[35,40,35,48],[35,49,35,62],[40,40,42,48],[40,49,42,62],[47,40,48,48],[47,49,48,62],[49,40,49,48],[49,49,49,62],[49,33,49,39],[50,40,50,48],[50,49,50,62],[51,33,51,39],[51,40,51,48],[51,49,51,62],[63,45,63,60],[61,45,62,60],[65,3,66,25],[33,1,33,17],[33,18,33,25],[33,26,33,32],[33,33,33,39],[33,40,33,48],[33,49,33,62],[34,1,34,17],[34,18,34,25],[34,26,34,32],[34,33,34,39],[34,40,34,48],[34,49,34,62],[17,49,17,62],[22,49,22,62],[23,49,23,62],[24,49,24,62],[25,49,25,62],[26,49,26,62],[27,49,27,62],[17,40,17,48],[22,40,22,48],[23,40,23,48],[24,40,24,48],[25,40,25,48],[26,40,26,48],[27,40,27,48],[20,40,20,48],[20,49,20,62],[17,18,17,25],[22,18,22,25],[23,18,23,25],[24,18,24,25],[25,18,25,25],[26,18,26,25],[17,33,17,39],[22,33,22,39],[23,33,23,39],[24,33,24,39],[25,33,25,39],[26,33,26,39],[17,26,17,32],[22,26,22,32],[23,26,23,32],[24,26,24,32],[25,26,25,32],[26,26,26,32],[20,26,20,32],[20,33,20,39],[26,1,26,17],[27,1,27,17],[52,1,54,39],[50,18,50,25],[50,26,50,32],[50,33,50,39],[51,1,51,17],[51,18,51,25],[51,26,51,32],[27,33,27,39],[27,26,27,32],[36,1,36,17],[36,18,36,25],[36,26,36,32],[36,33,36,39],[47,1,48,17],[47,18,48,25],[47,26,48,32],[47,33,48,39],[45,1,46,42],[40,1,42,39],[49,1,49,17],[49,18,49,25],[49,26,49,32],[10,49,11,62],[12,1,13,62],[10,1,11,17],[10,18,11,25],[10,40,11,48],[14,49,14,62],[15,49,15,62],[16,49,16,62],[37,40,39,48],[37,49,39,62],[37,1,39,39],[28,40,30,48],[28,49,30,62],[28,1,30,39],[31,1,32,62],[27,18,27,25],[14,1,14,17],[15,1,15,17],[16,1,16,17],[17,1,17,17],[22,1,22,17],[23,1,23,17],[24,1,24,17],[25,1,25,17],[1,2,2,15],[4,20,6,42],[8,1,9,12],[14,26,14,32],[15,26,15,32],[16,26,16,32],[14,33,14,39],[15,33,15,39],[16,33,16,39],[14,40,14,48],[15,40,15,48],[16,40,16,48],[10,26,11,32],[10,33,11,39],[14,18,14,25],[15,18,15,25],[16,18,16,25],[63,27,63,28],[63,29,63,31],[63,32,63,40],[61,32,62,40],[63,41,63,44],[57,1,58,21],[61,4,62,13],[63,4,63,13],[63,17,63,26],[63,14,63,16],[63,2,63,3],[52,40,54,48],[52,49,54,62],[50,1,50,17],[61,16,62,29],[18,1,18,17],[18,18,18,25],[18,26,18,32],[18,33,18,39],[18,40,18,48],[18,49,18,62],[19,1,19,17],[19,18,19,25],[19,26,19,32],[19,33,19,39],[19,40,19,48],[19,49,19,62],[21,1,21,17],[21,18,21,25],[21,26,21,32],[21,33,21,39],[21,40,21,48],[21,49,21,62],[20,1,20,17],[20,18,20,25]]}
[]
[null,null,"（別紙８－２　ア）"]
[]
[]
[null,null,null,null,null,null,null,null,null,null,null,null,null,null,null,null,null,null,null,null,"事業収支決算書"]
[]
[]
[]
[null,"Ⅰ　支出"]
[]
[null,"経費名称",null,null,null,null,null,null,null,null,null,null,null,null,null,null,null,null,"単価",null,null,null,null,null,null,null,"数量",null,null,null,null,null,null,"単位",null,null,null,null,null,null,"金額",null,null,null,null,null,null,null,null,"備　考"]
[]
[null,"　交付対象経費"]
[]
[null,null,null,null,null,null,null,null,null,null,null,null,null,null,null,null,null,null,null,null,null,null,null,null,null,null,null,null,null,null,null,null,null,null,null,null,null,null,null,null,{"$f":"S15*AA15","v":0},null,null,null,null,null,null,null,null,null,null,null,null,null,null,null,null,null,null,null,null,null,null,null,"■ 単価・数量・単位を入力すると、金額は自動入力されます。"]
[null,null,null,null,null,null,null,null,null,null,null,null,null,null,null,null,null,null,null,null,null,null,null,null,null,null,null,null,null,null,null,null,null,null,null,null,null,null,null,null,{"$f":"S16*AA16","v":0},null,null,null,null,null,null,null,null,null,null,null,null,null,null,null,null,null,null,null,null,null,null,null," （例：単価「10,000」  数量「１」  単位「式」＝  金額「10,000」）"]
[null,null,null,null,null,null,null,null,null,null,null,null,null,null,null,null,null,null,null,null,null,null,null,null,null,null,null,null,null,null,null,null,null,null,null,null,null,null,null,null,0,null,null,null,null,null,null,null,null,null,null,null,null,null,null,null,null,null,null,null,null,null,null,null,"■ 行が不足する場合は、適宜行を増やしてください。"]
[null,null,null,null,null,null,null,null,null,null,null,null,null,null,null,null,null,null,null,null,null,null,null,null,null,null,null,null,null,null,null,null,null,null,null,null,null,null,null,null,0]
[null,null,null,null,null,null,null,null,null,null,null,null,null,null,null,null,null,null,null,null,null,null,null,null,null,null,null,null,null,null,null,null,null,null,null,null,null,null,null,null,{"$f":"S19*AA19","v":0}]
[null,null,null,null,null,null,null,null,null,null,null,null,null,null,null,null,null,null,null,null,null,null,null,null,null,null,null,null,null,null,null,null,null,null,null,null,null,null,null,null,0]
[null,null,null,null,null,null,null,null,null,null,null,null,null,null,null,null,null,null,null,null,null,null,null,null,null,null,null,null,null,null,null,null,null,null,null,null,null,null,null,null,0]
[null,null,null,null,null,null,null,null,null,null,null,null,null,null,null,null,null,null,null,null,null,null,null,null,null,null,null,null,null,null,null,null,null,null,null,null,null,null,null,null,0]
[null,null,null,null,null,null,null,null,null,null,null,null,null,null,null,null,null,null,null,null,null,null,null,null,null,null,null,null,null,null,null,null,null,null,null,null,null,null,null,null,0]
[null,null,null,null,null,null,null,null,null,null,null,null,null,null,null,null,null,null,null,null,null,null,null,null,null,null,null,null,null,null,null,null,null,null,null,null,null,null,null,null,0]
[null,null,null,null,null,null,null,null,null,null,null,null,null,null,null,null,null,null,null,null,null,null,null,null,null,null,null,null,null,null,null,null,null,null,null,null,null,null,null,null,0]
[null,null,null,null,null,null,null,null,null,null,null,null,null,null,null,null,null,null,null,null,null,null,null,null,null,null,null,null,null,null,null,null,null,null,null,null,null,null,null,null,0]
[null,null,null,null,null,null,null,null,null,null,null,null,null,null,null,null,null,null,null,null,null,null,null,null,null,null,null,null,null,null,null,null,null,null,null,null,null,null,null,null,0]
[null,null,null,null,null,null,null,null,null,null,null,null,null,null,null,null,null,null,null,null,null,null,null,null,null,null,null,null,null,null,null,null,null,null,null,null,null,null,null,null,0]
[null,"合計（①）",null,null,null,null,null,null,null,null,null,null,null,null,null,null,null,null,null,null,null,null,null,null,null,null,null,null,null,null,null,null,null,null,null,null,null,null,null,null,{"$f":"SUM(AO15:AW28)","v":0}]
[]
[]
[null,"　交付対象外経費"]
[]
[null,null,null,null,null,null,null,null,null,null,null,null,null,null,null,null,null,null,null,null,null,null,null,null,null,null,null,null,null,null,null,null,null,null,null,null,null,null,null,null,{"$f":"S34*AA34","v":0}]
[null,null,null,null,null,null,null,null,null,null,null,null,null,null,null,null,null,null,null,null,null,null,null,null,null,null,null,null,null,null,null,null,null,null,null,null,null,null,null,null,{"$f":"S35*AA35","v":0}]
[null,null,null,null,null,null,null,null,null,null,null,null,null,null,null,null,null,null,null,null,null,null,null,null,null,null,null,null,null,null,null,null,null,null,null,null,null,null,null,null,0]
[null,null,null,null,null,null,null,null,null,null,null,null,null,null,null,null,null,null,null,null,null,null,null,null,null,null,null,null,null,null,null,null,null,null,null,null,null,null,null,null,0]
[null,"合計（②）",null,null,null,null,null,null,null,null,null,null,null,null,null,null,null,null,null,null,null,null,null,null,null,null,null,null,null,null,null,null,null,null,null,null,null,null,null,null,{"$f":"SUM(AO34:AW37)","v":0}]
[]
[]
[null,"総計／事業費（③＝①+②）",null,null,null,null,null,null,null,null,null,null,null,null,null,null,null,null,null,null,null,null,null,null,null,null,null,null,null,null,null,null,null,null,null,null,null,null,null,null,{"$f":"AO29+AO38","v":0}]
[]
[]
[]
[]
[null,"Ⅱ　収入（本補助金以外に収入があった場合に記載すること）"]
[]
[null,"経費名称",null,null,null,null,null,null,null,null,null,null,null,null,null,null,null,null,"単価",null,null,null,null,null,null,null,"数量",null,null,null,null,null,null,"単位",null,null,null,null,null,null,"金額",null,null,null,null,null,null,null,null,"備　考"]
[]
[null,null,null,null,null,null,null,null,null,null,null,null,null,null,null,null,null,null,null,null,null,null,null,null,null,null,null,null,null,null,null,null,null,null,null,null,null,null,null,null,{"$f":"S50*AA50","v":0}]
[null,null,null,null,null,null,null,null,null,null,null,null,null,null,null,null,null,null,null,null,null,null,null,null,null,null,null,null,null,null,null,null,null,null,null,null,null,null,null,null,{"$f":"S51*AA51","v":0}]
[null,null,null,null,null,null,null,null,null,null,null,null,null,null,null,null,null,null,null,null,null,null,null,null,null,null,null,null,null,null,null,null,null,null,null,null,null,null,null,null,{"$f":"S52*AA52","v":0}]
[null,"合計（④）",null,null,null,null,null,null,null,null,null,null,null,null,null,null,null,null,null,null,null,null,null,null,null,null,null,null,null,null,null,null,null,null,null,null,null,null,null,null,{"$f":"SUM(AO50:AW52)","v":0}]
[]
[]
[]
[]
[null,"Ⅲ　補助金交付予定額の算出"]
[]
[]
[]
[null,null,null,null,"①交付対象経費",null,null,null,null,null,null,null,null,null,null,null,"④本補助金以外の収入",null,null,null,null,null,null,null,null,null,null,null,null,null,null,null,"補助割合",null,null,null,null,null,null,null,null,null,null,null,null,"補助金交付予定額（*）"]
[]
[null,null,"（",null,{"$f":"AO29","v":0},null,null,null,null,null,null,null,null,null,"－",null,null,{"$f":"AO53","v":0},null,null,null,null,null,null,null,null,null,"）",null,"×",null,null,null,null,null,null,null,null,null,null,null,"＝",null,null,null,{"$f":"ROUNDDOWN((E64-R64)*AG64, -3)","v":0},null,null,null,null,null,null,null,null,null,null,null,null,null,null,null,null,null,null,"■ 「補助金交付申請額(*)」の自動計算結果が各区分の補助上限額を"]
[null,null,null,null,null,null,null,null,null,null,null,null,null,null,null,null,null,null,null,null,null,null,null,null,null,null,null,null,null,null,null,null,null,null,null,null,null,null,null,null,null,null,null,null,null,null,null,null,null,null,null,null,null,null,null,null,null,null,null,null,null,null,null,null,"　超える場合、本欄は手入力してください。"]
[null,null,null,"＊　補助金交付予定額：千円未満切捨て"]

{"sheet":"Ⅰ ","index":2,"n_rows":179,"n_cols":11,"rows_kept":179,"cut":false,"hidden":false,"merged":[[176,1,177,62],[178,1,179,62],[1,2,2,16],[4,10,6,56]]}
[]
[null,null,"（別紙８－１）"]
[]
[]
[null,null,null,null,null,null,null,null,null,null,"事業成果報告書（Ⅰ　変革推進枠）"]
[]
[]
[]
[]
[]
[]
[]
[]
[]
[]
[]
[]
[]
[]
[]
[]
[]
[]
[]
[]
[]
[]
[]
[]
[]
[]
[]
[]
[]
[]
[]
[]
[]
[]
[]
[]
[]
[]
[]
[]
[]
[]
[]
[]
[]
[]
[]
[]
[]
[]
[]
[]
[]
[]
[]
[]
[]
[]
[]
[]
[]
[]
[]
[]
[]
[]
[]
[]
[]
[]
[]
[]
[]
[]
[]
[]
[]
[]
[]
[]
[]
[]
[]
[]
[]
[]
[]
[]
[]
[]
[]
[]
[]
[]
[]
[]
[]
[]
[]
[]
[]
[]
[]
[]
[]
[]
[]
[]
[]
[]
[]
[]
[]
[]
[]
[]
[]
[]
[]
[]
[]
[]
[]
[]
[]
[]
[]
[]
[]
[]
[]
[]
[]
[]
[]
[]
[]
[]
[]
[]
[]
[]
[]
[]
[]
[]
[]
[]
[]
[]
[]
[]
[]
[]
[]
[]
[]
[]
[]
[]
[]
[]
[]
[]
[]
[]
[]
[]
[]
[]
[]
[null,"※　別紙８－１は、１～２ページ程度を目安とする"]
[]
[null,"※　実施内容は、その数に応じて、適宜枠を調整すること"]

{"sheet":"Ⅰ-２ ","index":3,"n_rows":92,"n_cols":62,"rows_kept":92,"cut":false,"hidden":false,"merged":[[75,13,88,61],[70,1,90,11],[62,15,63,36],[66,15,67,20],[66,21,67,60],[66,61,67,62],[91,1,92,31],[14,15,15,34],[18,15,19,56],[16,15,17,32],[16,33,17,60],[59,28,60,60],[28,15,29,26],[32,15,33,34],[34,15,35,27],[34,28,35,60],[8,1,37,11],[39,13,42,61],[38,1,69,11],[23,31,24,60],[54,28,55,60],[71,13,74,61],[1,2,2,16],[4,10,6,56],[9,13,12,61],[52,27,53,32],[52,33,53,60],[44,15,45,36],[48,15,49,36],[52,15,53,26],[25,15,26,56],[23,15,24,30],[16,61,17,62],[23,61,24,62],[34,61,35,62],[52,61,53,62],[57,61,58,62],[21,15,22,38],[57,15,58,26],[57,27,58,32],[57,33,58,60]]}
[]
[null,null,"（別紙８－１）"]
[]
[]
[null,null,null,null,null,null,null,null,null,null,"事業成果報告書（Ⅰ－２　変革スタート枠）"]
[]
[]
[]
[null,"実施内容"]
[null,null,null,null,null,null,null,null,null,null,null,null,null,"　当該事業により実施した内容にチェックを入れ、チェックボックス下部の（）にその名称を記載すること"]
[]
[]
[]
[]
[null,null,null,null,null,null,null,null,null,null,null,null,null,null,null,"第三者認証の取得"]
[]
[null,null,null,null,null,null,null,null,null,null,null,null,null,null,null,"取得した第三者認証の名称 (",null,null,null,null,null,null,null,null,null,null,null,null,null,null,null,null,null,null,null,null,null,null,null,null,null,null,null,null,null,null,null,null,null,null,null,null,null,null,null,null,null,null,null,null,null,")"]
[]
[null,null,null,null,null,null,null,null,null,null,null,null,null,null,null,"※複数の第三者認証を取得した場合は、該当する全ての認証名を記載すること"]
[]
[]
[null,null,null,null,null,null,null,null,null,null,null,null,null,null,null,"国内・海外の各種展示会への出展"]
[]
[null,null,null,null,null,null,null,null,null,null,null,null,null,null,null,"出展した展示会の名称 (",null,null,null,null,null,null,null,null,null,null,null,null,null,null,null,null,null,null,null,null,null,null,null,null,null,null,null,null,null,null,null,null,null,null,null,null,null,null,null,null,null,null,null,null,null,")"]
[]
[null,null,null,null,null,null,null,null,null,null,null,null,null,null,null,"※複数の展示会に出展した場合は、該当する全ての展示会名を記載すること"]
[]
[]
[null,null,null,null,null,null,null,null,null,null,null,null,null,null,null,"ＢＣＰ策定"]
[]
[]
[]
[null,null,null,null,null,null,null,null,null,null,null,null,null,null,null,"その他の実施内容"]
[]
[null,null,null,null,null,null,null,null,null,null,null,null,null,null,null,"具体的な実施内容 (",null,null,null,null,null,null,null,null,null,null,null,null,null,null,null,null,null,null,null,null,null,null,null,null,null,null,null,null,null,null,null,null,null,null,null,null,null,null,null,null,null,null,null,null,null,")"]
[]
[]
[]
[null,"実施事業の\n効果検証\n（複数選択可）"]
[null,null,null,null,null,null,null,null,null,null,null,null,null,"　当該事業により生じた効果について、チェックを入れ、（）内に必要な記載を行うこと"]
[]
[]
[]
[]
[null,null,null,null,null,null,null,null,null,null,null,null,null,null,null,"品質・衛生管理の強化"]
[]
[]
[]
[null,null,null,null,null,null,null,null,null,null,null,null,null,null,null,"持続可能な調達の実現"]
[]
[]
[]
[null,null,null,null,null,null,null,null,null,null,null,null,null,null,null,"売上の向上",null,null,null,null,null,null,null,null,null,null,null,"(効果：",null,null,null,null,null,null,null,null,null,null,null,null,null,null,null,null,null,null,null,null,null,null,null,null,null,null,null,null,null,null,null,null,null,")"]
[]
[null,null,null,null,null,null,null,null,null,null,null,null,null,null,null,null,null,null,null,null,null,null,null,null,null,null,null,null,"※ 前年同期比○％増加や○万円増加等を記載"]
[]
[]
[null,null,null,null,null,null,null,null,null,null,null,null,null,null,null,"販路の拡大",null,null,null,null,null,null,null,null,null,null,null,"(効果：",null,null,null,null,null,null,null,null,null,null,null,null,null,null,null,null,null,null,null,null,null,null,null,null,null,null,null,null,null,null,null,null,null,")"]
[]
[null,null,null,null,null,null,null,null,null,null,null,null,null,null,null,null,null,null,null,null,null,null,null,null,null,null,null,null,"※ 新規顧客○件獲得等を記載"]
[]
[]
[null,null,null,null,null,null,null,null,null,null,null,null,null,null,null,"事業継続体制の確保・強化"]
[]
[]
[]
[null,null,null,null,null,null,null,null,null,null,null,null,null,null,null,"その他（",null,null,null,null,null,null,null,null,null,null,null,null,null,null,null,null,null,null,null,null,null,null,null,null,null,null,null,null,null,null,null,null,null,null,null,null,null,null,null,null,null,null,null,null,null,")"]
[]
[]
[]
[null,"今後の展望"]
[null,null,null,null,null,null,null,null,null,null,null,null,null,"　（事業の結果を踏まえた今後の展望を記載すること。また事業実施による効果が交付申請時の計画のとおりに進まなかった場合、その要因として考えられることも記載すること）"]
[]
[]
[]
[]
[]
[]
[]
[]
[]
[]
[]
[]
[]
[]
[]
[]
[]
[]
[]
[null,"※　別紙８－１は、１ページを目安とする"]

{"sheet":"Ⅰ-３ ","index":4,"n_rows":88,"n_cols":61,"rows_kept":88,"cut":false,"hidden":false,"merged":[[82,13,84,61],[57,1,73,11],[87,1,88,31],[9,13,10,61],[26,13,27,61],[29,13,38,61],[41,13,42,61],[43,13,44,61],[46,13,55,61],[8,1,56,11],[62,13,71,61],[58,13,60,61],[74,1,85,11],[75,13,76,61],[78,16,79,21],[78,27,79,38],[15,60,16,61],[18,13,19,26],[18,27,19,59],[78,42,79,47],[78,48,79,57],[18,60,19,61],[21,14,24,60],[78,58,79,59],[1,2,2,16],[4,10,6,56],[12,13,13,46],[15,13,16,26],[15,27,16,59]]}
[]
[null,null,"（別紙８－１）"]
[]
[]
[null,null,null,null,null,null,null,null,null,null,"事業成果報告書（Ⅰ－３　省エネ対策枠）"]
[]
[]
[]
[null,"実施内容"]
[null,null,null,null,null,null,null,null,null,null,null,null,null,"（導入した機器や実施した内容の詳細を記載すること）"]
[]
[]
[null,null,null,null,null,null,null,null,null,null,null,null,null,"①　空調設備又はＬＥＤ照明器具の購入・リース"]
[]
[]
[null,null,null,null,null,null,null,null,null,null,null,null,null,"（機器名（型番等）：",null,null,null,null,null,null,null,null,null,null,null,null,null,null,null,null,null,null,null,null,null,null,null,null,null,null,null,null,null,null,null,null,null,null,null,null,null,null,null,null,null,null,null,null,null,null,"）"]
[]
[]
[null,null,null,null,null,null,null,null,null,null,null,null,null,"（機器指定番号　：",null,null,null,null,null,null,null,null,null,null,null,null,null,null,null,null,null,null,null,null,null,null,null,null,null,null,null,null,null,null,null,null,null,null,null,null,null,null,null,null,null,null,null,null,null,null,"）"]
[]
[]
[null,null,null,null,null,null,null,null,null,null,null,null,null,null,"　空調設備又はＬＥＤ照明器具の購入に際しては、導入推奨機器指定要綱に基づき指定を受けた製品の機器指定番号を記載すること"]
[]
[]
[]
[]
[null,null,null,null,null,null,null,null,null,null,null,null,null,"②　ＥＭＳの導入又は省エネコンサルティング等の実施（具体的に記載すること）"]
[]
[]
[]
[]
[]
[]
[]
[]
[]
[]
[]
[]
[]
[]
[null,null,null,null,null,null,null,null,null,null,null,null,null,"③　その他省エネルギー対策に資すると認められる事業の実施（具体的に記載"]
[]
[null,null,null,null,null,null,null,null,null,null,null,null,null,"すること）"]
[]
[]
[]
[]
[]
[]
[]
[]
[]
[]
[]
[]
[]
[null,"実施事業の\n効果検証"]
[null,null,null,null,null,null,null,null,null,null,null,null,null,"（上記を実施した事業の内容②又は③の場合、事業の結果を踏まえた今後の展望を記載すること。申請書の内容も踏まえて、記載すること）"]
[]
[]
[]
[]
[]
[]
[]
[]
[]
[]
[]
[]
[]
[]
[]
[null,"排出事業者"]
[null,null,null,null,null,null,null,null,null,null,null,null,null,"（当該事業において廃棄物が生じた場合、廃棄物の排出責任を負う事業者にチェックをつけること）"]
[]
[]
[null,null,null,null,null,null,null,null,null,null,null,null,null,null,null,null,"申請者",null,null,null,null,null,null,null,null,null,null,"工事施工業者",null,null,null,null,null,null,null,null,null,null,null,null,null,null,"その他 (",null,null,null,null,null,null,null,null,null,null,null,null,null,null,null,")"]
[]
[]
[]
[null,null,null,null,null,null,null,null,null,null,null,null,null,"※　申請者が排出事業者となる場合は、マニフェストやフロン引取証明書、家電リサイクル券など、適正に廃棄物を処理したことを証する書類を添付すること"]
[]
[]
[]
[]
[null,"※　別紙８－１は、１ページを目安とする"]

{"sheet":"Ⅰ-４ ","index":5,"n_rows":99,"n_cols":62,"rows_kept":99,"cut":false,"hidden":false,"merged":[[31,25,32,30],[31,35,32,40],[31,45,32,50],[31,51,32,60],[57,28,58,60],[55,27,56,32],[55,33,56,60],[45,28,46,60],[49,61,50,62],[55,61,56,62],[51,28,52,60],[55,15,56,26],[49,15,50,26],[22,30,23,60],[13,15,14,27],[13,32,14,43],[13,48,14,61],[16,15,17,25],[16,26,17,60],[98,1,99,31],[81,1,97,11],[61,15,62,26],[63,28,64,60],[67,15,68,26],[61,27,62,32],[61,33,62,60],[67,27,68,32],[67,33,68,60],[82,13,84,61],[86,13,96,61],[61,61,62,62],[67,61,68,62],[1,2,2,16],[4,10,6,56],[49,27,50,32],[49,33,50,60],[35,1,80,11],[36,13,38,61],[40,15,41,26],[40,27,41,42],[40,43,41,60],[43,27,44,45],[43,46,44,50],[43,51,44,54],[43,55,44,60],[24,15,26,58],[28,13,29,61],[31,15,32,20],[9,13,11,61],[8,1,34,11],[77,21,78,60],[77,61,78,62],[16,61,17,62],[22,61,23,62],[31,61,32,62],[40,61,41,62],[43,61,44,62],[69,28,70,60],[73,15,74,42],[77,15,78,20],[19,15,20,27],[19,32,20,43],[19,48,20,61],[22,15,23,29]]}
[]
[null,null,"（別紙８－１）"]
[]
[]
[null,null,null,null,null,null,null,null,null,null,"事業成果報告書（Ⅰ－４　ＤＸ推進枠）"]
[]
[]
[]
[null,"実施内容"]
[null,null,null,null,null,null,null,null,null,null,null,null,null,"①　当該事業により調達等を行ったシステムなどにチェックを入れ、チェックボックス下部の（）にその名称を記載すること"]
[]
[]
[]
[null,null,null,null,null,null,null,null,null,null,null,null,null,null,null,"販売管理システム",null,null,null,null,null,null,null,null,null,null,null,null,null,null,null,null,"受発注システム",null,null,null,null,null,null,null,null,null,null,null,null,null,null,null,"ＷＥＢ販売システム"]
[]
[]
[null,null,null,null,null,null,null,null,null,null,null,null,null,null,null,"その他システム (",null,null,null,null,null,null,null,null,null,null,null,null,null,null,null,null,null,null,null,null,null,null,null,null,null,null,null,null,null,null,null,null,null,null,null,null,null,null,null,null,null,null,null,null,null,")"]
[]
[]
[null,null,null,null,null,null,null,null,null,null,null,null,null,null,null,"ホームページ",null,null,null,null,null,null,null,null,null,null,null,null,null,null,null,null,"テレワーク環境",null,null,null,null,null,null,null,null,null,null,null,null,null,null,null,"オンライン会議環境"]
[]
[]
[null,null,null,null,null,null,null,null,null,null,null,null,null,null,null,"システムの商品名称  (",null,null,null,null,null,null,null,null,null,null,null,null,null,null,null,null,null,null,null,null,null,null,null,null,null,null,null,null,null,null,null,null,null,null,null,null,null,null,null,null,null,null,null,null,null,")"]
[]
[null,null,null,null,null,null,null,null,null,null,null,null,null,null,null,"※　調達等を行ったシステムの商品名称を記載すること\n　　ホームページ、テレワーク環境、オンライン会議環境については記載不要"]
[]
[]
[]
[null,null,null,null,null,null,null,null,null,null,null,null,null,"②　新規、更新、改修のうち、該当するものにチェックを入れること"]
[]
[]
[null,null,null,null,null,null,null,null,null,null,null,null,null,null,null," 新　規",null,null,null,null,null,null,null,null,null," 更　新",null,null,null,null,null,null,null,null,null," 改　修",null,null,null,null,null,null,null,null,null,"その他 (",null,null,null,null,null,null,null,null,null,null,null,null,null,null,null,")"]
[]
[]
[]
[null,"実施事業の\n効果検証\n（複数選択可）"]
[null,null,null,null,null,null,null,null,null,null,null,null,null,"　当該事業により生じた効果について、チェックを入れ、（）内に必要な記載を行うこと"]
[]
[]
[]
[null,null,null,null,null,null,null,null,null,null,null,null,null,null,null,"業務の効率化",null,null,null,null,null,null,null,null,null,null,null,"(効率化された業務の名称：",null,null,null,null,null,null,null,null,null,null,null,null,null,null,null,null,null,null,null,null,null,null,null,null,null,null,null,null,null,null,null,null,null,")"]
[]
[]
[null,null,null,null,null,null,null,null,null,null,null,null,null,null,null,null,null,null,null,null,null,null,null,null,null,null,null,"(削減された業務時間の目安：",null,null,null,null,null,null,null,null,null,null,null,null,null,null,null,null,null,null,null,null,null,null,null,"時間",null,null,null,null,null,null,null,null,null,")"]
[]
[null,null,null,null,null,null,null,null,null,null,null,null,null,null,null,null,null,null,null,null,null,null,null,null,null,null,null,null,"※ 効率化された業務が複数ある場合は、その合計値を記載"]
[]
[]
[]
[null,null,null,null,null,null,null,null,null,null,null,null,null,null,null,"売上の向上",null,null,null,null,null,null,null,null,null,null,null,"(効果：",null,null,null,null,null,null,null,null,null,null,null,null,null,null,null,null,null,null,null,null,null,null,null,null,null,null,null,null,null,null,null,null,null,")"]
[]
[null,null,null,null,null,null,null,null,null,null,null,null,null,null,null,null,null,null,null,null,null,null,null,null,null,null,null,null,"※ 前年同期比○％増加や○万円増加等を記載"]
[]
[]
[]
[null,null,null,null,null,null,null,null,null,null,null,null,null,null,null,"販路の拡大",null,null,null,null,null,null,null,null,null,null,null,"(効果：",null,null,null,null,null,null,null,null,null,null,null,null,null,null,null,null,null,null,null,null,null,null,null,null,null,null,null,null,null,null,null,null,null,")"]
[]
[null,null,null,null,null,null,null,null,null,null,null,null,null,null,null,null,null,null,null,null,null,null,null,null,null,null,null,null,"※ 新規顧客○件獲得等を記載"]
[]
[]
[]
[null,null,null,null,null,null,null,null,null,null,null,null,null,null,null,"情報発信力の強化",null,null,null,null,null,null,null,null,null,null,null,"(効果：",null,null,null,null,null,null,null,null,null,null,null,null,null,null,null,null,null,null,null,null,null,null,null,null,null,null,null,null,null,null,null,null,null,")"]
[]
[null,null,null,null,null,null,null,null,null,null,null,null,null,null,null,null,null,null,null,null,null,null,null,null,null,null,null,null,"※ 閲覧数○％向上等を記載"]
[]
[]
[]
[null,null,null,null,null,null,null,null,null,null,null,null,null,null,null,"正確性の向上",null,null,null,null,null,null,null,null,null,null,null,"(効果：",null,null,null,null,null,null,null,null,null,null,null,null,null,null,null,null,null,null,null,null,null,null,null,null,null,null,null,null,null,null,null,null,null,")"]
[]
[null,null,null,null,null,null,null,null,null,null,null,null,null,null,null,null,null,null,null,null,null,null,null,null,null,null,null,null,"※ ○件／月で生じていたミスが△件／月となった等を記載"]
[]
[]
[]
[null,null,null,null,null,null,null,null,null,null,null,null,null,null,null,"インボイス／電子帳簿保存法への円滑な対応"]
[]
[]
[]
[null,null,null,null,null,null,null,null,null,null,null,null,null,null,null,"その他（",null,null,null,null,null,null,null,null,null,null,null,null,null,null,null,null,null,null,null,null,null,null,null,null,null,null,null,null,null,null,null,null,null,null,null,null,null,null,null,null,null,null,null,null,null,")"]
[]
[]
[]
[null,"今後の展望"]
[null,null,null,null,null,null,null,null,null,null,null,null,null,"（事業の結果を踏まえた今後の展望を記載すること。また事業実施による効果が交付申請時の計画のとおりに進まなかった場合、その要因として考えられることも記載すること）"]
[]
[]
[]
[]
[]
[]
[]
[]
[]
[]
[]
[]
[]
[]
[]
[null,"※　別紙８－１は、１ページを目安とする"]

{"sheet":"Ⅰ-５ ","index":6,"n_rows":99,"n_cols":62,"rows_kept":99,"cut":false,"hidden":false,"merged":[[57,54,58,55],[77,28,78,60],[98,1,99,31],[82,1,97,11],[82,13,84,61],[85,13,96,61],[53,1,81,11],[79,15,80,20],[79,21,80,60],[54,13,55,61],[57,15,58,32],[71,27,72,32],[60,15,61,41],[62,14,63,33],[57,33,58,48],[57,49,58,53],[67,61,68,62],[71,61,72,62],[62,34,63,60],[65,15,66,26],[65,27,66,42],[65,43,66,60],[62,61,63,62],[65,61,66,62],[75,15,76,26],[67,27,68,45],[67,46,68,50],[67,51,68,54],[67,55,68,60],[69,28,70,60],[75,27,76,32],[75,33,76,60],[71,33,72,60],[71,15,72,26],[1,2,2,16],[4,10,6,56],[7,1,52,11],[8,13,10,61],[12,15,13,34],[15,15,16,61],[18,15,19,61],[21,15,22,61],[39,15,40,61],[24,15,25,34],[28,15,29,61],[30,15,31,61],[26,15,27,30],[26,31,27,60],[32,15,33,28],[32,29,33,60],[75,61,76,62],[79,61,80,62],[26,61,27,62],[32,61,33,62],[45,61,46,62],[50,61,51,62],[34,15,35,61],[36,15,37,61],[50,15,51,28],[50,29,51,60],[41,15,42,61],[43,15,44,61],[45,15,46,28],[45,29,46,60],[48,15,49,40],[73,28,74,60]]}
[]
[null,null,"（別紙８－１）"]
[]
[]
[null,null,null,null,null,null,null,null,null,null,"事業成果報告書（Ⅰ－５　人材確保支援枠）"]
[]
[]
[null,"実施内容"]
[null,null,null,null,null,null,null,null,null,null,null,null,null,"　当該事業により実施した内容にチェックを入れ、チェックボックス下部の（）にその名称を記載すること"]
[]
[]
[]
[null,null,null,null,null,null,null,null,null,null,null,null,null,null,null,"人材戦略・労務戦略の策定"]
[]
[]
[null,null,null,null,null,null,null,null,null,null,null,null,null,null,null,"就職説明会・企業見学会等の開催、就職担当教員の招聘"]
[]
[]
[null,null,null,null,null,null,null,null,null,null,null,null,null,null,null,"有料職業紹介事業者（人材紹介会社）を活用した採用活動"]
[]
[]
[null,null,null,null,null,null,null,null,null,null,null,null,null,null,null,"求人情報サイト、求人情報誌への広告掲載"]
[]
[]
[null,null,null,null,null,null,null,null,null,null,null,null,null,null,null,"採用説明会等への出展"]
[]
[null,null,null,null,null,null,null,null,null,null,null,null,null,null,null,"出展した説明会等の名称(",null,null,null,null,null,null,null,null,null,null,null,null,null,null,null,null,null,null,null,null,null,null,null,null,null,null,null,null,null,null,null,null,null,null,null,null,null,null,null,null,null,null,null,null,null,")"]
[]
[null,null,null,null,null,null,null,null,null,null,null,null,null,null,null,"※複数の説明会に出展した場合は、該当する全ての説明会名を記載すること"]
[]
[null,null,null,null,null,null,null,null,null,null,null,null,null,null,null,"採用に向けたＰＲ動画、ホームページ、パンフレット等の作成"]
[]
[null,null,null,null,null,null,null,null,null,null,null,null,null,null,null,"作成した媒体の名称(",null,null,null,null,null,null,null,null,null,null,null,null,null,null,null,null,null,null,null,null,null,null,null,null,null,null,null,null,null,null,null,null,null,null,null,null,null,null,null,null,null,null,null,null,null,")"]
[]
[null,null,null,null,null,null,null,null,null,null,null,null,null,null,null,"※複数の媒体を作成した場合は、該当する全ての媒体名称を記載すること"]
[]
[null,null,null,null,null,null,null,null,null,null,null,null,null,null,null,"人材確保、育成に向けた外部専門家によるコンサルティングの活用"]
[]
[]
[null,null,null,null,null,null,null,null,null,null,null,null,null,null,null,"研修体制の整備、研修の実施"]
[]
[null,null,null,null,null,null,null,null,null,null,null,null,null,null,null,"※研修を実施した場合は研修のスケジュールが分かる資料を添付すること"]
[]
[null,null,null,null,null,null,null,null,null,null,null,null,null,null,null,"就業規則や賃金規程、労働安全衛生規則などの労務関係規定の整備"]
[]
[null,null,null,null,null,null,null,null,null,null,null,null,null,null,null,"整備した規定の名称(",null,null,null,null,null,null,null,null,null,null,null,null,null,null,null,null,null,null,null,null,null,null,null,null,null,null,null,null,null,null,null,null,null,null,null,null,null,null,null,null,null,null,null,null,null,")"]
[]
[]
[null,null,null,null,null,null,null,null,null,null,null,null,null,null,null,"その他人材確保や人材育成に資する取組"]
[]
[null,null,null,null,null,null,null,null,null,null,null,null,null,null,null,"具体的な実施内容(",null,null,null,null,null,null,null,null,null,null,null,null,null,null,null,null,null,null,null,null,null,null,null,null,null,null,null,null,null,null,null,null,null,null,null,null,null,null,null,null,null,null,null,null,null,")"]
[]
[]
[null,"実施事業の\n効果検証\n（複数選択可）"]
[null,null,null,null,null,null,null,null,null,null,null,null,null,"当該事業により生じた効果について、チェックを入れ、（）内に必要な記載を行うこと"]
[]
[]
[null,null,null,null,null,null,null,null,null,null,null,null,null,null,null,"従業員の採用（採用者数：",null,null,null,null,null,null,null,null,null,null,null,null,null,null,null,null,null,null,null,null,null,null,null,null,null,null,null,null,null,null,null,null,null,"人",null,null,null,null,")"]
[]
[]
[null,null,null,null,null,null,null,null,null,null,null,null,null,null,null,"従業員のスキル・能力向上"]
[]
[null,null,null,null,null,null,null,null,null,null,null,null,null,null,"（向上を図ったスキル・能力：",null,null,null,null,null,null,null,null,null,null,null,null,null,null,null,null,null,null,null,null,null,null,null,null,null,null,null,null,null,null,null,null,null,null,null,null,null,null,null,null,null,null,null,null,null,null,")"]
[]
[]
[null,null,null,null,null,null,null,null,null,null,null,null,null,null,null,"業務の効率化",null,null,null,null,null,null,null,null,null,null,null,"(効率化した業務の名称：",null,null,null,null,null,null,null,null,null,null,null,null,null,null,null,null,null,null,null,null,null,null,null,null,null,null,null,null,null,null,null,null,null,")"]
[]
[null,null,null,null,null,null,null,null,null,null,null,null,null,null,null,null,null,null,null,null,null,null,null,null,null,null,null,"(削減できた業務時間の目安：",null,null,null,null,null,null,null,null,null,null,null,null,null,null,null,null,null,null,null,null,null,null,null,"時間",null,null,null,null,null,null,null,null,null,")"]
[]
[null,null,null,null,null,null,null,null,null,null,null,null,null,null,null,null,null,null,null,null,null,null,null,null,null,null,null,null,"※ 効率化した業務が複数ある場合は、その合計値を記載"]
[]
[null,null,null,null,null,null,null,null,null,null,null,null,null,null,null,"売上の向上",null,null,null,null,null,null,null,null,null,null,null,"(効果：",null,null,null,null,null,null,null,null,null,null,null,null,null,null,null,null,null,null,null,null,null,null,null,null,null,null,null,null,null,null,null,null,null,")"]
[]
[null,null,null,null,null,null,null,null,null,null,null,null,null,null,null,null,null,null,null,null,null,null,null,null,null,null,null,null,"※ 前年同期比○％増加や○万円増加等を記載"]
[]
[null,null,null,null,null,null,null,null,null,null,null,null,null,null,null,"販路の拡大",null,null,null,null,null,null,null,null,null,null,null,"(効果：",null,null,null,null,null,null,null,null,null,null,null,null,null,null,null,null,null,null,null,null,null,null,null,null,null,null,null,null,null,null,null,null,null,")"]
[]
[null,null,null,null,null,null,null,null,null,null,null,null,null,null,null,null,null,null,null,null,null,null,null,null,null,null,null,null,"※新規顧客○件獲得等を記載"]
[]
[null,null,null,null,null,null,null,null,null,null,null,null,null,null,null,"その他（",null,null,null,null,null,null,null,null,null,null,null,null,null,null,null,null,null,null,null,null,null,null,null,null,null,null,null,null,null,null,null,null,null,null,null,null,null,null,null,null,null,null,null,null,null,")"]
[]
[]
[null,"今後の展望",null,null,null,null,null,null,null,null,null,null,null,"　（事業の結果を踏まえた今後の展望を記載すること。また事業実施による効果が交付申請時の計画のとおりに進まなかった場合、その要因として考えられることも記載すること）"]
[]
[]
[]
[]
[]
[]
[]
[]
[]
[]
[]
[]
[]
[]
[]
[null,"※　別紙８－１は、１ページを目安とする"]

{"sheet":"Ⅱ","index":7,"n_rows":181,"n_cols":11,"rows_kept":181,"cut":false,"hidden":false,"merged":[[1,2,2,16],[4,10,6,56],[178,1,179,62],[180,1,181,62]]}
[]
[null,null,"（別紙８－１）"]
[]
[]
[null,null,null,null,null,null,null,null,null,null,"事業成果報告書（Ⅱ　伴走型経営支援枠）"]
[]
[]
[]
[]
[]
[]
[]
[]
[]
[]
[]
[]
[]
[]
[]
[]
[]
[]
[]
[]
[]
[]
[]
[]
[]
[]
[]
[]
[]
[]
[]
[]
[]
[]
[]
[]
[]
[]
[]
[]
[]
[]
[]
[]
[]
[]
[]
[]
[]
[]
[]
[]
[]
[]
[]
[]
[]
[]
[]
[]
[]
[]
[]
[]
[]
[]
[]
[]
[]
[]
[]
[]
[]
[]
[]
[]
[]
[]
[]
[]
[]
[]
[]
[]
[]
[]
[]
[]
[]
[]
[]
[]
[]
[]
[]
[]
[]
[]
[]
[]
[]
[]
[]
[]
[]
[]
[]
[]
[]
[]
[]
[]
[]
[]
[]
[]
[]
[]
[]
[]
[]
[]
[]
[]
[]
[]
[]
[]
[]
[]
[]
[]
[]
[]
[]
[]
[]
[]
[]
[]
[]
[]
[]
[]
[]
[]
[]
[]
[]
[]
[]
[]
[]
[]
[]
[]
[]
[]
[]
[]
[]
[]
[]
[]
[]
[]
[]
[]
[]
[]
[]
[]
[]
[null,"※　別紙８－１は、１～２ページ程度を目安とする"]
[]
[null,"※　実施内容は、その数に応じて、適宜枠を調整すること"]

{"sheet":"Ⅲ","index":8,"n_rows":182,"n_cols":11,"rows_kept":182,"cut":false,"hidden":false,"merged":[[1,2,2,16],[4,10,6,56],[181,1,182,62]]}
[]
[null,null,"（別紙８－１）"]
[]
[]
[null,null,null,null,null,null,null,null,null,null,"事業成果報告書（Ⅲ　市場活性化推進枠）"]
[]
[]
[]
[]
[]
[]
[]
[]
[]
[]
[]
[]
[]
[]
[]
[]
[]
[]
[]
[]
[]
[]
[]
[]
[]
[]
[]
[]
[]
[]
[]
[]
[]
[]
[]
[]
[]
[]
[]
[]
[]
[]
[]
[]
[]
[]
[]
[]
[]
[]
[]
[]
[]
[]
[]
[]
[]
[]
[]
[]
[]
[]
[]
[]
[]
[]
[]
[]
[]
[]
[]
[]
[]
[]
[]
[]
[]
[]
[]
[]
[]
[]
[]
[]
[]
[]
[]
[]
[]
[]
[]
[]
[]
[]
[]
[]
[]
[]
[]
[]
[]
[]
[]
[]
[]
[]
[]
[]
[]
[]
[]
[]
[]
[]
[]
[]
[]
[]
[]
[]
[]
[]
[]
[]
[]
[]
[]
[]
[]
[]
[]
[]
[]
[]
[]
[]
[]
[]
[]
[]
[]
[]
[]
[]
[]
[]
[]
[]
[]
[]
[]
[]
[]
[]
[]
[]
[]
[]
[]
[]
[]
[]
[]
[]
[]
[]
[]
[]
[]
[]
[]
[]
[]
[]
[]
[]
[null,"※　別紙８－１は、２ページ程度を目安とする"]

{"sheet":"Ⅳ","index":9,"n_rows":98,"n_cols":62,"rows_kept":98,"cut":false,"hidden":false,"merged":[[40,15,41,61],[42,15,43,61],[1,2,2,16],[4,10,6,56],[19,15,20,61],[22,15,23,61],[24,15,25,26],[24,27,25,60],[15,61,16,62],[24,61,25,62],[17,15,18,61],[8,1,50,11],[9,13,11,61],[13,15,14,61],[15,15,16,28],[15,29,16,60],[36,15,37,61],[38,15,39,20],[38,21,39,60],[28,32,29,34],[28,35,29,35],[28,36,29,60],[30,15,31,61],[33,15,34,61],[28,61,29,62],[38,61,39,62],[47,15,48,26],[47,27,48,60],[47,61,48,62],[75,61,76,62],[51,1,78,11],[52,13,54,61],[56,15,57,46],[58,30,59,35],[58,36,59,42],[75,15,76,19],[75,20,76,60],[26,15,27,61],[97,1,98,31],[58,15,59,29],[63,15,64,29],[63,30,64,35],[63,36,64,42],[68,15,69,25],[61,15,62,46],[66,15,67,61],[68,26,69,31],[68,32,69,38],[79,1,96,11],[80,13,82,61],[83,13,95,61],[71,15,72,46],[45,15,46,40]]}
[]
[null,null,"（別紙８－１）"]
[]
[]
[null,null,null,null,null,null,null,null,null,null,"事業成果報告書（Ⅳ　物流対策枠）"]
[]
[]
[]
[null,"実施内容"]
[null,null,null,null,null,null,null,null,null,null,null,null,null,"　当該事業により実施した取組にチェックを入れ、チェックボックス下部の（）にその名称を記載すること"]
[]
[]
[]
[null,null,null,null,null,null,null,null,null,null,null,null,null,null,null,"物流の効率化に資するシステムの導入"]
[]
[null,null,null,null,null,null,null,null,null,null,null,null,null,null,null,"導入したシステムの名称(",null,null,null,null,null,null,null,null,null,null,null,null,null,null,null,null,null,null,null,null,null,null,null,null,null,null,null,null,null,null,null,null,null,null,null,null,null,null,null,null,null,null,null,null,null,")"]
[]
[null,null,null,null,null,null,null,null,null,null,null,null,null,null,null,"記載例：配車システム・トラック予約システムなど　"]
[]
[null,null,null,null,null,null,null,null,null,null,null,null,null,null,null,"※複数のシステムを導入した場合は、全てのシステム名称を記載すること"]
[]
[]
[null,null,null,null,null,null,null,null,null,null,null,null,null,null,null,"物流の効率化に資する設備の導入"]
[]
[null,null,null,null,null,null,null,null,null,null,null,null,null,null,null,"導入した設備の名称(",null,null,null,null,null,null,null,null,null,null,null,null,null,null,null,null,null,null,null,null,null,null,null,null,null,null,null,null,null,null,null,null,null,null,null,null,null,null,null,null,null,null,null,null,null,")"]
[]
[null,null,null,null,null,null,null,null,null,null,null,null,null,null,null,"記載例：パレットチェンジャー、自動フォークリフトなど"]
[]
[null,null,null,null,null,null,null,null,null,null,null,null,null,null,null,null,null,null,null,null,null,null,null,null,null,null,null,null,null,null,null,null,"型番",null,null,"(",null,null,null,null,null,null,null,null,null,null,null,null,null,null,null,null,null,null,null,null,null,null,null,null,null,")"]
[]
[null,null,null,null,null,null,null,null,null,null,null,null,null,null,null,"※複数の設備を導入した場合は、全ての設備名称を記載すること"]
[]
[]
[null,null,null,null,null,null,null,null,null,null,null,null,null,null,null,"輸送用器具（標準仕様パレット、カゴ車　等）の導入"]
[]
[]
[null,null,null,null,null,null,null,null,null,null,null,null,null,null,null,"物流に関するコンサルティングの活用"]
[]
[null,null,null,null,null,null,null,null,null,null,null,null,null,null,null,"委託内容(",null,null,null,null,null,null,null,null,null,null,null,null,null,null,null,null,null,null,null,null,null,null,null,null,null,null,null,null,null,null,null,null,null,null,null,null,null,null,null,null,null,null,null,null,null,")"]
[]
[null,null,null,null,null,null,null,null,null,null,null,null,null,null,null,"記載例：荷待ち時間の把握、荷役等時間の把握、物流効率化に向けた"]
[]
[null,null,null,null,null,null,null,null,null,null,null,null,null,null,null,"人員体制整備支援・研修の実施、データ標準化支援など　　"]
[]
[]
[null,null,null,null,null,null,null,null,null,null,null,null,null,null,null,"その他物流の効率化に資する事業"]
[]
[null,null,null,null,null,null,null,null,null,null,null,null,null,null,null,"具体的な実施内容(",null,null,null,null,null,null,null,null,null,null,null,null,null,null,null,null,null,null,null,null,null,null,null,null,null,null,null,null,null,null,null,null,null,null,null,null,null,null,null,null,null,null,null,null,null,")"]
[]
[]
[]
[null,"実施事業の\n効果検証"]
[null,null,null,null,null,null,null,null,null,null,null,null,null,"　当該事業により生じた効果について、チェックを入れ、（）内に必要な記載を行うこと　"]
[]
[]
[]
[null,null,null,null,null,null,null,null,null,null,null,null,null,null,null,"自社トラック以外の運転者の荷待ち時間の短縮"]
[]
[null,null,null,null,null,null,null,null,null,null,null,null,null,null,null,"(短縮した荷待ち時間：",null,null,null,null,null,null,null,null,null,null,null,null,null,null,null,null,null,null,null,null,"時間／回)"]
[]
[]
[null,null,null,null,null,null,null,null,null,null,null,null,null,null,null,"自社トラック以外の運転者の荷役等時間の短縮"]
[]
[null,null,null,null,null,null,null,null,null,null,null,null,null,null,null,"(短縮した荷役等時間：",null,null,null,null,null,null,null,null,null,null,null,null,null,null,null,null,null,null,null,null,"時間／回)"]
[]
[]
[null,null,null,null,null,null,null,null,null,null,null,null,null,null,null,"自社トラック以外の運転者一人当たりの一回の運送ごとの貨物の重量の増加"]
[]
[null,null,null,null,null,null,null,null,null,null,null,null,null,null,null,"(増加した重量：",null,null,null,null,null,null,null,null,null,null,null,null,null,null,null,null,"ｋｇ／回)"]
[]
[]
[null,null,null,null,null,null,null,null,null,null,null,null,null,null,null,"上記３項目のいずれかの実効性を確保"]
[]
[]
[]
[null,null,null,null,null,null,null,null,null,null,null,null,null,null,null,"その他(",null,null,null,null,null,null,null,null,null,null,null,null,null,null,null,null,null,null,null,null,null,null,null,null,null,null,null,null,null,null,null,null,null,null,null,null,null,null,null,null,null,null,null,null,null,")"]
[]
[]
[]
[null,"今後の展望"]
[null,null,null,null,null,null,null,null,null,null,null,null,null,"（事業の結果を踏まえた今後の展望を記載すること。また事業実施による効果が交付申請時の計画のとおり進まなかった場合、その要因として考えられることも記載すること。）"]
[]
[]
[]
[]
[]
[]
[]
[]
[]
[]
[]
[]
[]
[]
[]
[]
[null,"※　別紙８－１は、１ページを目安とする"]

{"sheet":"Ⅴ","index":10,"n_rows":90,"n_cols":62,"rows_kept":90,"cut":false,"hidden":false,"merged":[[46,15,47,20],[46,21,47,60],[46,61,47,62],[50,1,70,11],[51,13,53,61],[55,15,56,46],[58,15,59,46],[61,15,62,46],[64,15,65,46],[67,15,68,19],[67,20,68,60],[67,61,68,62],[89,1,90,31],[13,15,16,61],[17,15,18,29],[17,30,18,46],[17,47,18,47],[17,48,18,54],[17,55,18,58],[17,59,18,60],[71,1,88,11],[72,13,74,61],[75,13,87,61],[24,15,25,25],[24,26,25,46],[24,47,25,47],[24,48,25,54],[35,1,49,11],[1,2,2,16],[4,10,6,56],[8,1,34,11],[9,13,11,61],[24,55,25,58],[24,59,25,60],[27,15,30,61],[31,15,32,25],[31,26,32,46],[31,47,32,47],[31,48,32,54],[31,55,32,58],[31,59,32,60],[17,61,18,62],[24,61,25,62],[31,61,32,62],[40,61,41,62],[43,61,44,62],[20,15,23,61],[36,13,38,61],[40,15,41,32],[40,33,41,60],[43,15,44,40],[43,41,44,60]]}
[]
[null,null,"（別紙８－１）"]
[]
[]
[null,null,null,null,null,null,null,null,null,null,"事業成果報告書（Ⅴ　暑さ対策支援枠）"]
[]
[]
[]
[null,"実施内容"]
[null,null,null,null,null,null,null,null,null,null,null,null,null,"　当該事業により実施した内容にチェックを入れ、チェックボックス下部の（）に必要な記載を行うこと"]
[]
[]
[]
[null,null,null,null,null,null,null,null,null,null,null,null,null,null,null,"従業員等の熱中症対策として体温を下げるための機能を有する作業服等の導入（作業服等の着用部位ごとに従業員等１名あたり１点まで）"]
[]
[]
[]
[null,null,null,null,null,null,null,null,null,null,null,null,null,null,null,"(導入した作業服等の名称：",null,null,null,null,null,null,null,null,null,null,null,null,null,null,null,null,null,null,null,null,null,null,null,null,null,null,null,null,null,null,null,"/","導入点数：",null,null,null,null,null,null,null,null,null,null,"点",null,")"]
[]
[]
[null,null,null,null,null,null,null,null,null,null,null,null,null,null,null,"従業員等の熱中症の初期症状等による体調急変を把握できる小型携帯機器（ウェアラブルデバイス）の導入（従業員等１名あたり１点まで）"]
[]
[]
[]
[null,null,null,null,null,null,null,null,null,null,null,null,null,null,null,"(導入機器の名称：",null,null,null,null,null,null,null,null,null,null,null,null,null,null,null,null,null,null,null,null,null,null,null,null,null,null,null,null,null,null,null,"/","導入点数：",null,null,null,null,null,null,null,null,null,null,"点",null,")"]
[]
[]
[null,null,null,null,null,null,null,null,null,null,null,null,null,null,null,"従業員等の熱中症リスクの把握に資する暑さ指数（ＷＢＧＴ）計測器の導入"]
[]
[]
[]
[null,null,null,null,null,null,null,null,null,null,null,null,null,null,null,"(導入機器の名称：",null,null,null,null,null,null,null,null,null,null,null,null,null,null,null,null,null,null,null,null,null,null,null,null,null,null,null,null,null,null,null,"/","導入点数：",null,null,null,null,null,null,null,null,null,null,"点",null,")"]
[]
[]
[]
[null,"主たる\n使用場所"]
[null,null,null,null,null,null,null,null,null,null,null,null,null,"　当該事業により導入した機器等について、主たる使用場所にチェックを入れ、（）に具体的な使用場所を記載すること"]
[]
[]
[]
[null,null,null,null,null,null,null,null,null,null,null,null,null,null,null,"外気に直接触れる屋外環境(",null,null,null,null,null,null,null,null,null,null,null,null,null,null,null,null,null,null,null,null,null,null,null,null,null,null,null,null,null,null,null,null,null,null,null,null,null,null,null,null,null,null,null,null,null,")"]
[]
[]
[null,null,null,null,null,null,null,null,null,null,null,null,null,null,null,"熱中症対策が必要となる暑熱な屋内環境(",null,null,null,null,null,null,null,null,null,null,null,null,null,null,null,null,null,null,null,null,null,null,null,null,null,null,null,null,null,null,null,null,null,null,null,null,null,null,null,null,null,null,null,null,null,")"]
[]
[]
[null,null,null,null,null,null,null,null,null,null,null,null,null,null,null,"その他(",null,null,null,null,null,null,null,null,null,null,null,null,null,null,null,null,null,null,null,null,null,null,null,null,null,null,null,null,null,null,null,null,null,null,null,null,null,null,null,null,null,null,null,null,null,")"]
[]
[]
[]
[null,"実施事業の\n効果検証\n（複数選択可）"]
[null,null,null,null,null,null,null,null,null,null,null,null,null,"　当該事業により生じた効果について、チェックを入れ、（）に必要な記載を行うこと"]
[]
[]
[]
[null,null,null,null,null,null,null,null,null,null,null,null,null,null,null,"従業員等の熱中症の未然防止"]
[]
[]
[null,null,null,null,null,null,null,null,null,null,null,null,null,null,null,"熱中症のおそれのある従業員等の早期発見"]
[]
[]
[null,null,null,null,null,null,null,null,null,null,null,null,null,null,null,"暑熱な環境下での事業継続体制の確保・強化"]
[]
[]
[null,null,null,null,null,null,null,null,null,null,null,null,null,null,null,"人材定着等に向けた作業環境の改善"]
[]
[]
[null,null,null,null,null,null,null,null,null,null,null,null,null,null,null,"その他(",null,null,null,null,null,null,null,null,null,null,null,null,null,null,null,null,null,null,null,null,null,null,null,null,null,null,null,null,null,null,null,null,null,null,null,null,null,null,null,null,null,null,null,null,null,")"]
[]
[]
[]
[null,"今後の展望"]
[null,null,null,null,null,null,null,null,null,null,null,null,null,"（事業の結果を踏まえた今後の展望を記載すること。また事業実施による効果が交付申請時の計画のとおり進まなかった場合、その要因として考えられることも記載すること。）"]
[]
[]
[]
[]
[]
[]
[]
[]
[]
[]
[]
[]
[]
[]
[]
[]
[null,"※　別紙８－１は、１ページを目安とする"]

{"sheet":"リスト","index":11,"n_rows":32,"n_cols":8,"rows_kept":32,"cut":false,"hidden":true,"merged":[]}
[]
["令和８",8,1,1,8,0.5,"第１の１（１）公平かつ公正な取引環境の確保","／日"]
["令和９",9,2,2,9,0.66666666666666663,"第１の１（２）品質・衛生管理の徹底・強化","／週"]
["令和10",null,3,3,10,0.8,"第１の１（３）事業継続体制の確保・強化","／月"]
[null,null,4,4,null,null,"第１の１（４）ＤＸの推進等による市場業務の効率化"]
[null,null,5,5,null,null,"第１の２　サプライチェーンにおける結びつきの強化"]
[null,null,6,6,null,null,"第１の３　市場業者の経営基盤の強化"]
[null,null,7,7,null,null,"第２の１　物流の高度化・効率化"]
[null,null,8,8,null,null,"第２の２　商流の高度化・効率化"]
[null,null,9,9,null,null,"第２の３　多様な消費者ニーズへの対応"]
[null,null,10,10,null,null,"第３の１（１）環境問題への取組（市場のゼロエミッション化）"]
[null,null,11,11,null,null,"第３の１（２）環境問題への取組（持続可能な調達等の取組）"]
[null,null,12,12,null,null,"第３の２　地域社会との共生"]
[null,null,null,13,null,null,"第３の３　働き方改革・ダイバーシティの推進"]
[null,null,null,14]
[null,null,null,15]
[null,null,null,16]
[null,null,null,17]
[null,null,null,18]
[null,null,null,19]
[null,null,null,20]
[null,null,null,21]
[null,null,null,22]
[null,null,null,23]
[null,null,null,24]
[null,null,null,25]
[null,null,null,26]
[null,null,null,27]
[null,null,null,28]
[null,null,null,29]
[null,null,null,30]
[null,null,null,31]